Workbook

Sheet 汇总表
A1: 汇川区2019年上半年公开招聘事业单位人员总成绩公示
A2: 序号 | B2: 姓名 | C2: 准考证号 | D2: 报考单位及代码 | E2: 报考职位及代码 | F2: 笔试 总成绩 | G2: 百分制折算后笔试成绩 | H2: 面试成绩 | I2: 总成绩 | J2: 名次 | K2: 是否进入体检
A3: 1 | B3: 赵有勤 | C3: 5552211403612 | D3: 101遵义市汇川区泗渡镇卫生院 | E3: 01检验士 | F3: 149.90 | G3: =F3/3 -> 49.97 | H3: 77.80 | I3: 61.10 | J3: 1 | K3: 是
A4: 2 | B4: 龚坤星 | C4: 5552211403402 | D4: 101遵义市汇川区泗渡镇卫生院 | E4: 01检验士 | F4: 148.60 | G4: 49.53 | H4: 77.20 | I4: 60.60 | J4: 2 | K4: 否
A5: 3 | B5: 邹蓉 | C5: 5552211404013 | D5: 101遵义市汇川区泗渡镇卫生院 | E5: 01检验士 | F5: 143.90 | G5: 47.97 | H5: 72.00 | I5: 57.58 | J5: 3 | K5: 否
A6: 4 | B6: 张文星 | C6: 5552211403908 | D6: 101遵义市汇川区泗渡镇卫生院 | E6: 02影像技术士 | F6: 171.50 | G6: 57.17 | H6: 82.60 | I6: 67.34 | J6: 1 | K6: 是
A7: 5 | B7: 周礼红 | C7: 5552211403005 | D7: 101遵义市汇川区泗渡镇卫生院 | E7: 02影像技术士 | F7: 155.60 | G7: 51.87 | H7: 82.40 | I7: 64.08 | J7: 2 | K7: 否
A8: 6 | B8: 丁铨 | C8: 5552211403019 | D8: 101遵义市汇川区泗渡镇卫生院 | E8: 02影像技术士 | F8: 146.50 | G8: 48.83 | H8: 76.40 | I8: 59.86 | J8: 3 | K8: 否
A9: 7 | B9: 黄乾俊 | C9: 5252211401422 | D9: 102遵义市汇川区松林镇中心卫生院 | E9: 01外科医生 | F9: 146.30 | G9: 48.77 | H9: 80.40 | I9: 61.42 | J9: 1 | K9: 是
A10: 8 | B10: 田小强 | C10: 5252211401220 | D10: 102遵义市汇川区松林镇中心卫生院 | E10: 01外科医生 | F10: 155.30 | G10: 51.77 | H10: 74.60 | I10: 60.90 | J10: 2 | K10: 否
A11: 9 | B11: 向磊 | C11: 5252211401517 | D11: 102遵义市汇川区松林镇中心卫生院 | E11: 01外科医生 | F11: 142.20 | G11: 47.40 | H11: 79.00 | I11: 60.04 | J11: 3 | K11: 否
A12: 10 | B12: 梁隆华 | C12: 5252211401725 | D12: 103遵义市汇川区上海路社区卫生服务中心 | E12: 01住院医师 | F12: 164.90 | G12: 54.97 | H12: 81.00 | I12: 65.38 | J12: 1 | K12: 是
A13: 11 | B13: 黄梅梅 | C13: 5252211401706 | D13: 103遵义市汇川区上海路社区卫生服务中心 | E13: 01住院医师 | F13: 158.80 | G13: 52.93 | H13: 71.00 | I13: 60.16 | J13: 2 | K13: 否
A14: 12 | B14: 郭萍 | C14: 5552211404022 | D14: 104遵义市汇川区沙湾镇卫生院 | E14: 01检验士 | F14: 147.60 | G14: 49.20 | H14: 81.00 | I14: 61.92 | J14: 1 | K14: 是
A15: 13 | B15: 彭琴 | C15: 5552211403310 | D15: 104遵义市汇川区沙湾镇卫生院 | E15: 01检验士 | F15: 155.20 | G15: 51.73 | H15: 75.60 | I15: 61.28 | J15: 2 | K15: 否
A16: 14 | B16: 胡万里 | C16: 5552211403417 | D16: 104遵义市汇川区沙湾镇卫生院 | E16: 01检验士 | F16: 153.20 | G16: 51.07 | H16: 73.20 | I16: 59.92 | J16: 3 | K16: 否
A17: 15 | B17: 喻清水 | C17: 1152213000410 | D17: 105遵义市汇川区团泽镇卫生院 | E17: 01计算机管理员 | F17: 179.50 | G17: 59.83 | H17: 83.40 | I17: 69.26 | J17: 1 | K17: 是
A18: 16 | B18: 熊茂 | C18: 1152213002607 | D18: 105遵义市汇川区团泽镇卫生院 | E18: 01计算机管理员 | F18: 167.00 | G18: 55.67 | H18: 79.80 | I18: 65.32 | J18: 2 | K18: 否
A19: 17 | B19: 刘丽 | C19: 1152213002616 | D19: 105遵义市汇川区团泽镇卫生院 | E19: 01计算机管理员 | F19: 163.50 | G19: 54.50 | H19: 76.20 | I19: 63.18 | J19: 3 | K19: 否
A20: 18 | B20: 杨芳芳 | C20: 5252211401701 | D20: 106遵义市汇川区高坪中心卫生院 | E20: 01西医住院医师 | F20: 174.00 | G20: 58.00 | H20: 80.60 | I20: 67.04 | J20: 1 | K20: 是
A21: 19 | B21: 范雨薇 | C21: 5252211401123 | D21: 106遵义市汇川区高坪中心卫生院 | E21: 01西医住院医师 | F21: 176.50 | G21: 58.83 | H21: 77.80 | I21: 66.42 | J21: 2 | K21: 是
A22: 20 | B22: 毛永秀 | C22: 5252211401423 | D22: 106遵义市汇川区高坪中心卫生院 | E22: 01西医住院医师 | F22: 167.50 | G22: 55.83 | H22: 81.00 | I22: 65.90 | J22: 3 | K22: 是
A23: 21 | B23: 刘坤 | C23: 5252211401421 | D23: 106遵义市汇川区高坪中心卫生院 | E23: 01西医住院医师 | F23: 169.80 | G23: 56.60 | H23: 79.00 | I23: 65.56 | J23: 4 | K23: 否
A24: 22 | B24: 赵春霞 | C24: 5252211401412 | D24: 106遵义市汇川区高坪中心卫生院 | E24: 01西医住院医师 | F24: 169.90 | G24: 56.63 | H24: 78.80 | I24: 65.50 | J24: 5 | K24: 否
A25: 23 | B25: 姚承银 | C25: 5252211401824 | D25: 106遵义市汇川区高坪中心卫生院 | E25: 01西医住院医师 | F25: 170.00 | G25: 56.67 | H25: 77.40 | I25: 64.96 | J25: 6 | K25: 否
A26: 24 | B26: 杨鹏 | C26: 5252211401113 | D26: 106遵义市汇川区高坪中心卫生院 | E26: 01西医住院医师 | F26: 167.50 | G26: 55.83 | H26: 76.80 | I26: 64.22 | J26: 7 | K26: 否
A27: 25 | B27: 舒德维 | C27: 5252211401511 | D27: 106遵义市汇川区高坪中心卫生院 | E27: 01西医住院医师 | F27: 168.50 | G27: 56.17 | H27: 76.20 | I27: 64.18 | J27: 8 | K27: 否
A28: 26 | B28: 王鑫 | C28: 5252211401315 | D28: 106遵义市汇川区高坪中心卫生院 | E28: 01西医住院医师 | F28: 169.10 | G28: 56.37 | H28: 72.60 | I28: 62.86 | J28: 9 | K28: 否
A29: 27 | B29: 王国波 | C29: 5552211403614 | D29: 106遵义市汇川区高坪中心卫生院 | E29: 02检验士 | F29: 167.20 | G29: 55.73 | H29: 85.00 | I29: 67.44 | J29: 1 | K29: 是
A30: 28 | B30: 徐本淑 | C30: 5552211403926 | D30: 106遵义市汇川区高坪中心卫生院 | E30: 02检验士 | F30: 164.50 | G30: 54.83 | H30: 79.60 | I30: 64.74 | J30: 2 | K30: 是
A31: 29 | B31: 杜德钰 | C31: 5552211403504 | D31: 106遵义市汇川区高坪中心卫生院 | E31: 02检验士 | F31: 154.40 | G31: 51.47 | H31: 81.40 | I31: 63.44 | J31: 3 | K31: 否
A32: 30 | B32: 胡从兴 | C32: 5552211403628 | D32: 106遵义市汇川区高坪中心卫生院 | E32: 02检验士 | F32: 158.60 | G32: 52.87 | H32: 78.40 | I32: 63.08 | J32: 4 | K32: 否
A33: 31 | B33: 崔芸 | C33: 5552211403110 | D33: 106遵义市汇川区高坪中心卫生院 | E33: 02检验士 | F33: 153.40 | G33: 51.13 | H33: 80.40 | I33: 62.84 | J33: 5 | K33: 否
A34: 32 | B34: 罗艳霞 | C34: 5552211403630 | D34: 106遵义市汇川区高坪中心卫生院 | E34: 02检验士 | F34: 154.80 | G34: 51.60 | H34: 75.20 | I34: 61.04 | J34: 6 | K34: 否
A35: 33 | B35: 张丹 | C35: 5552211404124 | D35: 106遵义市汇川区高坪中心卫生院 | E35: 03影像科医生 | F35: 176.90 | G35: 58.97 | H35: 79.20 | I35: 67.06 | J35: 1 | K35: 是
A36: 34 | B36: 李平平 | C36: 5552211403021 | D36: 106遵义市汇川区高坪中心卫生院 | E36: 03影像科医生 | F36: 150.30 | G36: 50.10 | H36: 83.20 | I36: 63.34 | J36: 2 | K36: 否
A37: 35 | B37: 黄祖丽 | C37: 5552211403217 | D37: 106遵义市汇川区高坪中心卫生院 | E37: 03影像科医生 | F37: 149.60 | G37: 49.87 | H37: 74.00 | I37: 59.52 | J37: 3 | K37: 否
A38: 36 | B38: 杜婷 | C38: 5152211400808 | D38: 106遵义市汇川区高坪中心卫生院 | E38: 04针灸科医生 | F38: 164.70 | G38: 54.90 | H38: 76.00 | I38: 63.34 | J38: 1 | K38: 是
A39: 37 | B39: 苏永霞 | C39: 5152211400912 | D39: 106遵义市汇川区高坪中心卫生院 | E39: 04针灸科医生 | F39: 150.40 | G39: 50.13 | H39: 82.80 | I39: 63.20 | J39: 2 | K39: 否
A40: 38 | B40: 何彦蓉 | C40: 5152211400907 | D40: 106遵义市汇川区高坪中心卫生院 | E40: 04针灸科医生 | F40: 148.50 | G40: 49.50 | H40: 缺考 | I40: 29.70 | J40: 3 | K40: 否
A41: 39 | B41: 杨志铃 | C41: 5252211401103 | D41: 109遵义市汇川区中医院 | E41: 01西医住院医师 | F41: 182.10 | G41: 60.70 | H41: 77.80 | I41: 67.54 | J41: 1 | K41: 是
A42: 40 | B42: 司杰 | C42: 5252211401127 | D42: 109遵义市汇川区中医院 | E42: 01西医住院医师 | F42: 167.30 | G42: 55.77 | H42: 81.50 | I42: 66.06 | J42: 2 | K42: 是
A43: 41 | B43: 杨国冲 | C43: 5252211401222 | D43: 109遵义市汇川区中医院 | E43: 01西医住院医师 | F43: 168.90 | G43: 56.30 | H43: 76.80 | I43: 64.50 | J43: 3 | K43: 是
A44: 42 | B44: 梁红 | C44: 5252211401114 | D44: 109遵义市汇川区中医院 | E44: 01西医住院医师 | F44: 160.10 | G44: 53.37 | H44: 76.80 | I44: 62.74 | J44: 4 | K44: 是
A45: 43 | B45: 罗小丽 | C45: 5252211401814 | D45: 109遵义市汇川区中医院 | E45: 01西医住院医师 | F45: 158.80 | G45: 52.93 | H45: 72.20 | I45: 60.64 | J45: 5 | K45: 是
A46: 44 | B46: 张梨 | C46: 5252211401528 | D46: 109遵义市汇川区中医院 | E46: 01西医住院医师 | F46: 147.90 | G46: 49.30 | H46: 73.60 | I46: 59.02 | J46: 6 | K46: 是
A47: 45 | B47: 雷洪举 | C47: 5252211401020 | D47: 109遵义市汇川区中医院 | E47: 01西医住院医师 | F47: 159.40 | G47: 53.13 | H47: 67.40 | I47: 58.84 | J47: 7 | K47: 是
A48: 46 | B48: 熊帅 | C48: 5252211401009 | D48: 109遵义市汇川区中医院 | E48: 01西医住院医师 | F48: 125.50 | G48: 41.83 | H48: 81.00 | I48: 57.50 | J48: 8 | K48: 是
A49: 47 | B49: 李可丽 | C49: 5252211401525 | D49: 109遵义市汇川区中医院 | E49: 01西医住院医师 | F49: 139.20 | G49: 46.40 | H49: 缺考 | I49: 27.84 | J49: 9 | K49: 否
A50: 48 | B50: 杨云艳 | C50: 5552211403802 | D50: 109遵义市汇川区中医院 | E50: 02检验师 | F50: 174.90 | G50: 58.30 | H50: 80.00 | I50: 66.98 | J50: 1 | K50: 是
A51: 49 | B51: 孙华丽 | C51: 5552211403202 | D51: 109遵义市汇川区中医院 | E51: 02检验师 | F51: 167.10 | G51: 55.70 | H51: 82.80 | I51: 66.54 | J51: 2 | K51: 是
A52: 50 | B52: 付颖 | C52: 5552211404206 | D52: 109遵义市汇川区中医院 | E52: 02检验师 | F52: 168.80 | G52: 56.27 | H52: 79.30 | I52: 65.48 | J52: 3 | K52: 是
A53: 51 | B53: 刘毅 | C53: 5552211403812 | D53: 109遵义市汇川区中医院 | E53: 02检验师 | F53: 150.00 | G53: 50.00 | H53: 86.90 | I53: 64.76 | J53: 4 | K53: 是
A54: 52 | B54: 朱先禹 | C54: 5552211403713 | D54: 109遵义市汇川区中医院 | E54: 02检验师 | F54: 163.80 | G54: 54.60 | H54: 79.90 | I54: 64.72 | J54: 5 | K54: 是
A55: 53 | B55: 刘玉 | C55: 5552211403623 | D55: 109遵义市汇川区中医院 | E55: 02检验师 | F55: 165.90 | G55: 55.30 | H55: 77.80 | I55: 64.30 | J55: 6 | K55: 是
A56: 54 | B56: 杨唤英 | C56: 5552211403401 | D56: 109遵义市汇川区中医院 | E56: 02检验师 | F56: 153.30 | G56: 51.10 | H56: 81.70 | I56: 63.34 | J56: 7 | K56: 否
A57: 55 | B57: 郑周丽 | C57: 5552211403302 | D57: 109遵义市汇川区中医院 | E57: 02检验师 | F57: 151.90 | G57: 50.63 | H57: 81.00 | I57: 62.78 | J57: 8 | K57: 否
A58: 56 | B58: 陈立东 | C58: 5552211403726 | D58: 109遵义市汇川区中医院 | E58: 02检验师 | F58: 149.80 | G58: 49.93 | H58: 78.00 | I58: 61.16 | J58: 9 | K58: 否
A59: 57 | B59: 刘洋 | C59: 5552211404230 | D59: 109遵义市汇川区中医院 | E59: 02检验师 | F59: 151.30 | G59: 50.43 | H59: 74.40 | I59: 60.02 | J59: 10 | K59: 否
A60: 58 | B60: 陈娅娅 | C60: 5552211403222 | D60: 109遵义市汇川区中医院 | E60: 02检验师 | F60: 146.50 | G60: 48.83 | H60: 76.30 | I60: 59.82 | J60: 11 | K60: 否
A61: 59 | B61: 罗丽丽 | C61: 5552211403619 | D61: 109遵义市汇川区中医院 | E61: 02检验师 | F61: 153.00 | G61: 51.00 | H61: 73.00 | I61: 59.80 | J61: 12 | K61: 否
A62: 60 | B62: 姜凤 | C62: 5552211403921 | D62: 109遵义市汇川区中医院 | E62: 02检验师 | F62: 152.00 | G62: 50.67 | H62: 72.20 | I62: 59.28 | J62: 13 | K62: 否
A63: 61 | B63: 郑翔 | C63: 5552211403024 | D63: 109遵义市汇川区中医院 | E63: 02检验师 | F63: 158.00 | G63: 52.67 | H63: 缺考 | I63: 31.60 | J63: 14 | K63: 否
A64: 62 | B64: 张晋 | C64: 5552211403528 | D64: 109遵义市汇川区中医院 | E64: 02检验师 | F64: 151.00 | G64: 50.33 | H64: 缺考 | I64: 30.20 | J64: 15 | K64: 否
A65: 63 | B65: 余昌磊 | C65: 5552211403307 | D65: 109遵义市汇川区中医院 | E65: 02检验师 | F65: 144.00 | G65: 48.00 | H65: 缺考 | I65: 28.80 | J65: 16 | K65: 否
A66: 64 | B66: 唐勇 | C66: 5152211400904 | D66: 109遵义市汇川区中医院 | E66: 03中医住院医师 | F66: 150.80 | G66: 50.27 | H66: 77.60 | I66: 61.20 | J66: 1 | K66: 是
A67: 65 | B67: 陈富晗 | C67: 5152211400818 | D67: 109遵义市汇川区中医院 | E67: 03中医住院医师 | F67: 139.40 | G67: =F67/3 -> 46.47 | H67: 80.40 | I67: 60.04 | J67: 2 | K67: 是
A68: 66 | B68: 徐莉媛 | C68: 5152211400917 | D68: 109遵义市汇川区中医院 | E68: 03中医住院医师 | F68: 138.20 | G68: 46.07 | H68: 79.20 | I68: 59.32 | J68: 3 | K68: 是
A69: 67 | B69: 余银 | C69: 5152211400809 | D69: 109遵义市汇川区中医院 | E69: 03中医住院医师 | F69: 130.30 | G69: 43.43 | H69: 80.80 | I69: 58.38 | J69: 4 | K69: 是
A70: 68 | B70: 黄颖 | C70: 5152211400806 | D70: 109遵义市汇川区中医院 | E70: 04中医住院医师 | F70: 176.00 | G70: 58.67 | H70: 83.10 | I70: 68.44 | J70: 1 | K70: 是
A71: 69 | B71: 李迅 | C71: 5152211400920 | D71: 109遵义市汇川区中医院 | E71: 04中医住院医师 | F71: 158.40 | G71: 52.80 | H71: 76.00 | I71: 62.08 | J71: 2 | K71: 是
A72: 70 | B72: 尧元刚 | C72: 5152211400829 | D72: 109遵义市汇川区中医院 | E72: 04中医住院医师 | F72: 144.10 | G72: 48.03 | H72: 77.60 | I72: 59.86 | J72: 3 | K72: 是
A73: 71 | B73: 文禹森 | C73: 5152211400928 | D73: 109遵义市汇川区中医院 | E73: 04中医住院医师 | F73: 151.30 | G73: 50.43 | H73: 72.00 | I73: 59.06 | J73: 4 | K73: 是
A74: 72 | B74: 余慧 | C74: 5152211400801 | D74: 109遵义市汇川区中医院 | E74: 04中医住院医师 | F74: 134.10 | G74: 44.70 | H74: 75.60 | I74: 57.06 | J74: 5 | K74: 是
A75: 73 | B75: 罗青 | C75: 5152211400823 | D75: 109遵义市汇川区中医院 | E75: 04中医住院医师 | F75: 146.00 | G75: 48.67 | H75: 69.00 | I75: 56.80 | J75: 6 | K75: 是
A76: 74 | B76: 黄军 | C76: 5152211400830 | D76: 109遵义市汇川区中医院 | E76: 04中医住院医师 | F76: 139.80 | G76: 46.60 | H76: 65.60 | I76: 54.20 | J76: 7 | K76: 是
A77: 75 | B77: 向远兰 | C77: 5152211400921 | D77: 109遵义市汇川区中医院 | E77: 04中医住院医师 | F77: 131.40 | G77: 43.80 | H77: 67.00 | I77: 53.08 | J77: 8 | K77: 是
A78: 76 | B78: 兰晓琴 | C78: 5152211400919 | D78: 109遵义市汇川区中医院 | E78: 04中医住院医师 | F78: 125.60 | G78: 41.87 | H78: 67.60 | I78: 52.16 | J78: 9 | K78: 否
A79: 77 | B79: 熊飘飘 | C79: 5152211400922 | D79: 109遵义市汇川区中医院 | E79: 04中医住院医师 | F79: 146.00 | G79: 48.67 | H79: 缺考 | I79: 29.20 | J79: 10 | K79: 否
A80: 78 | B80: 苏志芹 | C80: 5552211403822 | D80: 109遵义市汇川区中医院 | E80: 05影像科医生 | F80: 151.00 | G80: 50.33 | H80: 71.60 | I80: 58.84 | J80: 1 | K80: 是
A81: 79 | B81: 王子杰 | C81: 1152213001026 | D81: 109遵义市汇川区中医院 | E81: 06信息科 | F81: 196.00 | G81: 65.33 | H81: 86.80 | I81: 73.92 | J81: 1 | K81: 是
A82: 80 | B82: 杨益林 | C82: 1152213001922 | D82: 109遵义市汇川区中医院 | E82: 06信息科 | F82: 200.50 | G82: 66.83 | H82: 73.20 | I82: 69.38 | J82: 2 | K82: 否
A83: 81 | B83: 徐进 | C83: 1152213000703 | D83: 109遵义市汇川区中医院 | E83: 06信息科 | F83: 193.00 | G83: 64.33 | H83: 缺考 | I83: 38.60 | J83: 3 | K83: 否
A84: 82 | B84: 任莹 | C84: 1152213000816 | D84: 109遵义市汇川区中医院 | E84: 07财务人员 | F84: 197.00 | G84: 65.67 | H84: 85.60 | I84: 73.64 | J84: 1 | K84: 是
A85: 83 | B85: 范秋红 | C85: 1152213000111 | D85: 109遵义市汇川区中医院 | E85: 07财务人员 | F85: 191.00 | G85: 63.67 | H85: 84.40 | I85: 71.96 | J85: 2 | K85: 否
A86: 84 | B86: 周丽丽 | C86: 1152213001428 | D86: 109遵义市汇川区中医院 | E86: 07财务人员 | F86: 194.00 | G86: 64.67 | H86: 81.40 | I86: 71.36 | J86: 3 | K86: 否
A87: 85 | B87: 王莹 | C87: 5252211401407 | D87: 109遵义市汇川区中医院 | E87: 08口腔科医师 | F87: 160.70 | G87: 53.57 | H87: 80.20 | I87: 64.22 | J87: 1 | K87: 是
A88: 86 | B88: 代兰 | C88: 5252211401124 | D88: 109遵义市汇川区中医院 | E88: 08口腔科医师 | F88: 156.20 | G88: 52.07 | H88: 72.40 | I88: 60.20 | J88: 2 | K88: 是
A89: 87 | B89: 游尚坤 | C89: 5252211401214 | D89: 109遵义市汇川区中医院 | E89: 08口腔科医师 | F89: 160.30 | G89: 53.43 | H89: 69.40 | I89: 59.82 | J89: 3 | K89: 是
A90: 88 | B90: 张安红 | C90: 5252211401011 | D90: 109遵义市汇川区中医院 | E90: 08口腔科医师 | F90: 131.40 | G90: 43.80 | H90: 81.20 | I90: 58.76 | J90: 4 | K90: 是
A91: 89 | B91: 孙霞 | C91: 5252211401415 | D91: 109遵义市汇川区中医院 | E91: 08口腔科医师 | F91: 147.10 | G91: 49.03 | H91: 72.00 | I91: 58.22 | J91: 5 | K91: 否
A92: 90 | B92: 陆丽 | C92: 5252211401818 | D92: 109遵义市汇川区中医院 | E92: 08口腔科医师 | F92: 131.40 | G92: 43.80 | H92: 76.80 | I92: 57.00 | J92: 6 | K92: 否
A93: 91 | B93: 袁德丽 | C93: 5252211401729 | D93: 109遵义市汇川区中医院 | E93: 08口腔科医师 | F93: 127.00 | G93: 42.33 | H93: 71.00 | I93: 53.80 | J93: 7 | K93: 否
A94: 92 | B94: 李小雅 | C94: 5252211401720 | D94: 109遵义市汇川区中医院 | E94: 08口腔科医师 | F94: 146.00 | G94: 48.67 | H94: 缺考 | I94: 29.20 | J94: 8 | K94: 否
A95: 93 | B95: 左玉银 | C95: 5352211401911 | D95: 109遵义市汇川区中医院 | E95: 09主管西药师 | F95: 148.30 | G95: 49.43 | H95: 74.40 | I95: 59.42 | J95: 1 | K95: 是
A96: 94 | B96: 罗雪 | C96: 5352211401913 | D96: 109遵义市汇川区中医院 | E96: 09主管西药师 | F96: 125.10 | G96: 41.70 | H96: 65.00 | I96: 51.02 | J96: 2 | K96: 否
A97: 95 | B97: 刘洪美 | C97: 5352211404316 | D97: 109遵义市汇川区中医院 | E97: 09主管西药师 | F97: 128.30 | G97: 42.77 | H97: 61.00 | I97: 50.06 | J97: 3 | K97: 否
A98: 96 | B98: 周长梅 | C98: 5352211404307 | D98: 109遵义市汇川区中医院 | E98: 10主管中药师 | F98: 141.00 | G98: 47.00 | H98: 73.00 | I98: 57.40 | J98: 1 | K98: 是
A99: 97 | B99: 吴微微 | C99: 5252211401807 | D99: 109遵义市汇川区中医院 | E99: 11麻醉医师 | F99: 172.80 | G99: 57.60 | H99: 76.20 | I99: 65.04 | J99: 1 | K99: 是
A100: 98 | B100: 叶鑫玉 | C100: 5252211401023 | D100: 109遵义市汇川区中医院 | E100: 11麻醉医师 | F100: 141.30 | G100: 47.10 | H100: 缺考 | I100: 28.26 | J100: 2 | K100: 否
A101: 99 | B101: 陈才慢 | C101: 5452211402815 | D101: 109遵义市汇川区中医院 | E101: 12主管护师 | F101: 168.90 | G101: 56.30 | H101: 72.40 | I101: 62.74 | J101: 1 | K101: 是
A102: 100 | B102: 钟丽萍 | C102: 5452211402912 | D102: 109遵义市汇川区中医院 | E102: 12主管护师 | F102: 148.90 | G102: 49.63 | H102: 81.80 | I102: 62.50 | J102: 2 | K102: 是
A103: 101 | B103: 涂明静 | C103: 5452211404411 | D103: 109遵义市汇川区中医院 | E103: 12主管护师 | F103: 152.30 | G103: 50.77 | H103: 77.70 | I103: 61.54 | J103: 3 | K103: 否
A104: 102 | B104: 陈付英 | C104: 5452211402520 | D104: 109遵义市汇川区中医院 | E104: 12主管护师 | F104: 147.30 | G104: 49.10 | H104: 72.60 | I104: 58.50 | J104: 4 | K104: 否
A105: 103 | B105: 张艳 | C105: 5452211402410 | D105: 109遵义市汇川区中医院 | E105: 12主管护师 | F105: 144.50 | G105: 48.17 | H105: 72.20 | I105: 57.78 | J105: 5 | K105: 否
A106: 104 | B106: 敖艳 | C106: 5252211401107 | D106: 110遵义市汇川区妇幼保健院 | E106: 01妇产科医师 | F106: 180.60 | G106: 60.20 | H106: 79.20 | I106: 67.80 | J106: 1 | K106: 是
A107: 105 | B107: 姚莹莹 | C107: 5252211401626 | D107: 110遵义市汇川区妇幼保健院 | E107: 01妇产科医师 | F107: 176.20 | G107: 58.73 | H107: 75.40 | I107: 65.40 | J107: 2 | K107: 是
A108: 106 | B108: 王榜玉 | C108: 5252211401008 | D108: 110遵义市汇川区妇幼保健院 | E108: 01妇产科医师 | F108: 159.60 | G108: 53.20 | H108: 79.40 | I108: 63.68 | J108: 3 | K108: 是
A109: 107 | B109: 杨丽 | C109: 5252211401004 | D109: 110遵义市汇川区妇幼保健院 | E109: 01妇产科医师 | F109: 153.90 | G109: 51.30 | H109: 76.00 | I109: 61.18 | J109: 4 | K109: 是
A110: 108 | B110: 龙春梅 | C110: 5252211401129 | D110: 110遵义市汇川区妇幼保健院 | E110: 02儿科医师 | F110: 182.80 | G110: 60.93 | H110: 71.00 | I110: 64.96 | J110: 1 | K110: 是
A111: 109 | B111: 龙伟 | C111: 5252211401627 | D111: 110遵义市汇川区妇幼保健院 | E111: 02儿科医师 | F111: 148.60 | G111: 49.53 | H111: 69.40 | I111: 57.48 | J111: 2 | K111: 是
A112: 110 | B112: 石显芳 | C112: 5452211402524 | D112: 110遵义市汇川区妇幼保健院 | E112: 03护士 | F112: 164.70 | G112: 54.90 | H112: 83.60 | I112: 66.38 | J112: 1 | K112: 是
A113: 111 | B113: 李豆豆 | C113: 5452211402426 | D113: 110遵义市汇川区妇幼保健院 | E113: 03护士 | F113: 173.50 | G113: 57.83 | H113: 78.60 | I113: 66.14 | J113: 2 | K113: 是
A114: 112 | B114: 徐静 | C114: 5452211402809 | D114: 110遵义市汇川区妇幼保健院 | E114: 03护士 | F114: 166.80 | G114: 55.60 | H114: 80.80 | I114: 65.68 | J114: 3 | K114: 是
A115: 113 | B115: 杨欠 | C115: 5452211402823 | D115: 110遵义市汇川区妇幼保健院 | E115: 03护士 | F115: 156.40 | G115: 52.13 | H115: 81.80 | I115: 64.00 | J115: 4 | K115: 是
A116: 114 | B116: 陈晓艳 | C116: 5452211402709 | D116: 110遵义市汇川区妇幼保健院 | E116: 03护士 | F116: 155.40 | G116: 51.80 | H116: 81.80 | I116: 63.80 | J116: 5 | K116: 是
A117: 115 | B117: 刘兰 | C117: 5452211402612 | D117: 110遵义市汇川区妇幼保健院 | E117: 03护士 | F117: 167.90 | G117: 55.97 | H117: 74.00 | I117: 63.18 | J117: 6 | K117: 否
A118: 116 | B118: 王海燕 | C118: 5452211404408 | D118: 110遵义市汇川区妇幼保健院 | E118: 03护士 | F118: 153.50 | G118: 51.17 | H118: 81.20 | I118: 63.18 | J118: 6 | K118: 否
A119: 117 | B119: 韦颖 | C119: 5452211402429 | D119: 110遵义市汇川区妇幼保健院 | E119: 03护士 | F119: 156.00 | G119: 52.00 | H119: 78.00 | I119: 62.40 | J119: 8 | K119: 否
A120: 118 | B120: 杨文 | C120: 5452211402730 | D120: 110遵义市汇川区妇幼保健院 | E120: 03护士 | F120: 160.60 | G120: 53.53 | H120: 73.60 | I120: 61.56 | J120: 9 | K120: 否
A121: 119 | B121: 胡莎 | C121: 5452211402516 | D121: 110遵义市汇川区妇幼保健院 | E121: 03护士 | F121: 156.40 | G121: 52.13 | H121: 74.00 | I121: 60.88 | J121: 10 | K121: 否
A122: 120 | B122: 祝煕燕 | C122: 5452211402408 | D122: 110遵义市汇川区妇幼保健院 | E122: 03护士 | F122: 158.80 | G122: 52.93 | H122: 72.60 | I122: 60.80 | J122: 11 | K122: 否
A123: 121 | B123: 危灿灿 | C123: 5452211402507 | D123: 110遵义市汇川区妇幼保健院 | E123: 03护士 | F123: 155.00 | G123: 51.67 | H123: 66.20 | I123: 57.48 | J123: 12 | K123: 否
A124: 122 | B124: 徐雅君 | C124: 5452211402930 | D124: 110遵义市汇川区妇幼保健院 | E124: 03护士 | F124: 157.70 | G124: 52.57 | H124: 缺考 | I124: 31.54 | J124: 13 | K124: 否
A125: 123 | B125: 孟贤玉 | C125: 5452211402614 | D125: 110遵义市汇川区妇幼保健院 | E125: 04助产士 | F125: 150.70 | G125: 50.23 | H125: 81.60 | I125: 62.78 | J125: 1 | K125: 是
A126: 124 | B126: 庹帏 | C126: 5452211402830 | D126: 110遵义市汇川区妇幼保健院 | E126: 04助产士 | F126: 149.20 | G126: 49.73 | H126: 77.00 | I126: 60.64 | J126: 2 | K126: 是
A127: 125 | B127: 张亚 | C127: 5452211402806 | D127: 110遵义市汇川区妇幼保健院 | E127: 04助产士 | F127: 157.90 | G127: 52.63 | H127: 71.40 | I127: 60.14 | J127: 3 | K127: 否
A128: 126 | B128: 李丽 | C128: 5452211402729 | D128: 110遵义市汇川区妇幼保健院 | E128: 04助产士 | F128: 143.80 | G128: 47.93 | H128: 75.80 | I128: 59.08 | J128: 4 | K128: 否
A129: 127 | B129: 赵仁群 | C129: 5452211404409 | D129: 110遵义市汇川区妇幼保健院 | E129: 04助产士 | F129: 144.50 | G129: 48.17 | H129: 73.40 | I129: 58.26 | J129: 5 | K129: 否
A130: 128 | B130: 张娜娜 | C130: 5452211402719 | D130: 110遵义市汇川区妇幼保健院 | E130: 04助产士 | F130: 146.20 | G130: 48.73 | H130: 72.00 | I130: 58.04 | J130: 6 | K130: 否
A131: 129 | B131: 罗静 | C131: 5252211401611 | D131: 110遵义市汇川区妇幼保健院 | E131: 05麻醉师 | F131: 182.60 | G131: =F131/3 -> 60.87 | H131: 80.60 | I131: 68.76 | J131: 1 | K131: 是
A132: 130 | B132: 李薇 | C132: 5252211401803 | D132: 110遵义市汇川区妇幼保健院 | E132: 05麻醉师 | F132: 163.20 | G132: 54.40 | H132: 80.80 | I132: 64.96 | J132: 2 | K132: 是
A133: 131 | B133: 陈霞 | C133: 5252211401812 | D133: 110遵义市汇川区妇幼保健院 | E133: 05麻醉师 | F133: 160.50 | G133: 53.50 | H133: 78.40 | I133: 63.46 | J133: 3 | K133: 否
A134: 132 | B134: 张健 | C134: 5252211401707 | D134: 110遵义市汇川区妇幼保健院 | E134: 05麻醉师 | F134: 138.10 | G134: 46.03 | H134: 缺考 | I134: 27.62 | J134: 4 | K134: 否
A135: 133 | B135: 杨章煜 | C135: 5352211402007 | D135: 110遵义市汇川区妇幼保健院 | E135: 06药师 | F135: 195.50 | G135: 65.17 | H135: 82.60 | I135: 72.14 | J135: 1 | K135: 是
A136: 134 | B136: 陆前辉 | C136: 5352211402307 | D136: 110遵义市汇川区妇幼保健院 | E136: 06药师 | F136: 179.70 | G136: 59.90 | H136: 79.80 | I136: 67.86 | J136: 2 | K136: 是
A137: 135 | B137: 陈雷 | C137: 5352211404308 | D137: 110遵义市汇川区妇幼保健院 | E137: 06药师 | F137: 165.00 | G137: 55.00 | H137: 83.60 | I137: 66.44 | J137: 3 | K137: 否
A138: 136 | B138: 王德茂 | C138: 5352211402305 | D138: 110遵义市汇川区妇幼保健院 | E138: 06药师 | F138: 163.10 | G138: 54.37 | H138: 78.50 | I138: 64.02 | J138: 4 | K138: 否
A139: 137 | B139: 陈英 | C139: 5352211402226 | D139: 110遵义市汇川区妇幼保健院 | E139: 06药师 | F139: 165.40 | G139: 55.13 | H139: 76.60 | I139: 63.72 | J139: 5 | K139: 否
A140: 138 | B140: 聂琴凤 | C140: 5352211402105 | D140: 110遵义市汇川区妇幼保健院 | E140: 06药师 | F140: 163.10 | G140: 54.37 | H140: 66.00 | I140: 59.02 | J140: 6 | K140: 否
A141: 139 | B141: 徐诺 | C141: 1152213000802 | D141: 110遵义市汇川区妇幼保健院 | E141: 08信息科 | F141: 200.50 | G141: 66.83 | H141: 84.10 | I141: 73.74 | J141: 1 | K141: 是
A142: 140 | B142: 曾政 | C142: 1152213000225 | D142: 110遵义市汇川区妇幼保健院 | E142: 08信息科 | F142: 186.50 | G142: 62.17 | H142: 85.40 | I142: 71.46 | J142: 2 | K142: 否
A143: 141 | B143: 罗晓涯 | C143: 1152213000827 | D143: 110遵义市汇川区妇幼保健院 | E143: 08信息科 | F143: 207.00 | G143: 69.00 | H143: 缺考 | I143: 41.40 | J143: 3 | K143: 否
A144: 142 | B144: 曾颖 | C144: 5552211403113 | D144: 110遵义市汇川区妇幼保健院 | E144: 09检验医师 | F144: 175.50 | G144: 58.50 | H144: 81.00 | I144: 67.50 | J144: 1 | K144: 是
A145: 143 | B145: 赵文琼 | C145: 5552211403922 | D145: 110遵义市汇川区妇幼保健院 | E145: 09检验医师 | F145: 182.10 | G145: 60.70 | H145: 76.30 | I145: 66.94 | J145: 2 | K145: 是
A146: 144 | B146: 葛玲玉 | C146: 5552211403303 | D146: 110遵义市汇川区妇幼保健院 | E146: 09检验医师 | F146: 168.20 | G146: 56.07 | H146: 80.20 | I146: 65.72 | J146: 3 | K146: 是
A147: 145 | B147: 李茂杨 | C147: 5552211404227 | D147: 110遵义市汇川区妇幼保健院 | E147: 09检验医师 | F147: 165.20 | G147: 55.07 | H147: 78.10 | I147: 64.28 | J147: 4 | K147: 否
A148: 146 | B148: 任真 | C148: 5552211403819 | D148: 110遵义市汇川区妇幼保健院 | E148: 09检验医师 | F148: 161.10 | G148: 53.70 | H148: 80.00 | I148: 64.22 | J148: 5 | K148: 否
A149: 147 | B149: 唐全梅 | C149: 5552211403514 | D149: 110遵义市汇川区妇幼保健院 | E149: 09检验医师 | F149: 159.60 | G149: 53.20 | H149: 77.40 | I149: 62.88 | J149: 6 | K149: 否
A150: 148 | B150: 王丛娅 | C150: 5552211403627 | D150: 110遵义市汇川区妇幼保健院 | E150: 09检验医师 | F150: 158.30 | G150: 52.77 | H150: 75.50 | I150: 61.86 | J150: 7 | K150: 否
A151: 149 | B151: 卢林凤 | C151: 5552211403715 | D151: 110遵义市汇川区妇幼保健院 | E151: 09检验医师 | F151: 154.60 | G151: 51.53 | H151: 缺考 | I151: 30.92 | J151: 8 | K151: 否
A152: 150 | B152: 唐德美 | C152: 5552211403904 | D152: 110遵义市汇川区妇幼保健院 | E152: 09检验医师 | F152: 153.80 | G152: 51.27 | H152: 缺考 | I152: 30.76 | J152: 9 | K152: 否
A153: 151 | B153: 杨仕洪 | C153: 5152211400824 | D153: 111遵义市汇川区人民医院 | E153: 01内科医师 | F153: 137.10 | G153: 45.70 | H153: 83.10 | I153: 60.66 | J153: 1 | K153: 是
A154: 152 | B154: 李娅 | C154: 5152211400909 | D154: 111遵义市汇川区人民医院 | E154: 01内科医师 | F154: 129.50 | G154: 43.17 | H154: 缺考 | I154: 25.90 | J154: 2 | K154: 否
A155: 153 | B155: 李威 | C155: 5152211400812 | D155: 111遵义市汇川区人民医院 | E155: 01内科医师 | F155: 129.30 | G155: 43.10 | H155: 缺考 | I155: 25.86 | J155: 3 | K155: 否
A156: 154 | B156: 杨坤念 | C156: 5352211401912 | D156: 111遵义市汇川区人民医院 | E156: 03药剂科药师 | F156: 170.00 | G156: 56.67 | H156: 77.40 | I156: 64.96 | J156: 1 | K156: 是
A157: 155 | B157: 张习刚 | C157: 5352211404302 | D157: 111遵义市汇川区人民医院 | E157: 03药剂科药师 | F157: 160.40 | G157: 53.47 | H157: 78.60 | I157: 63.52 | J157: 2 | K157: 否
A158: 156 | B158: 李晓旭 | C158: 5352211402020 | D158: 111遵义市汇川区人民医院 | E158: 03药剂科药师 | F158: 165.10 | G158: 55.03 | H158: 74.90 | I158: 62.98 | J158: 3 | K158: 否
A159: 157 | B159: 熊世维 | C159: 5252211404401 | D159: 111遵义市汇川区人民医院 | E159: 04妇产科医师 | F159: 155.70 | G159: 51.90 | H159: 77.50 | I159: 62.14 | J159: 1 | K159: 是
A160: 158 | B160: 苏玲 | C160: 5552211403706 | D160: 111遵义市汇川区人民医院 | E160: 05影像科医师 | F160: 161.70 | G160: 53.90 | H160: 75.90 | I160: 62.70 | J160: 1 | K160: 是
A161: 159 | B161: 赖景贵 | C161: 5252211401705 | D161: 111遵义市汇川区人民医院 | E161: 07ICU医师 | F161: 173.40 | G161: 57.80 | H161: 77.90 | I161: 65.84 | J161: 1 | K161: 是
A162: 160 | B162: 蔡勇 | C162: 5252211401121 | D162: 111遵义市汇川区人民医院 | E162: 07ICU医师 | F162: 171.20 | G162: 57.07 | H162: 74.60 | I162: 64.08 | J162: 2 | K162: 否
A163: 161 | B163: 李晓 | C163: 5252211401230 | D163: 111遵义市汇川区人民医院 | E163: 07ICU医师 | F163: 165.40 | G163: 55.13 | H163: 77.30 | I163: 64.00 | J163: 3 | K163: 否
A164: 162 | B164: 娄皑雪 | C164: 5552211403008 | D164: 111遵义市汇川区人民医院 | E164: 08康复医师 | F164: 122.50 | G164: 40.83 | H164: 77.80 | I164: 55.62 | J164: 1 | K164: 是
A165: 163 | B165: 李兰兰 | C165: 5552211403728 | D165: 111遵义市汇川区人民医院 | E165: 08康复医师 | F165: 145.70 | G165: 48.57 | H165: 缺考 | I165: 29.14 | J165: 2 | K165: 否
A166: 164 | B166: 罗文鑫 | C166: 5252211401330 | D166: 111遵义市汇川区人民医院 | E166: 09外科医师 | F166: 187.30 | G166: 62.43 | H166: 80.10 | I166: 69.50 | J166: 1 | K166: 是
A167: 165 | B167: 刘松先 | C167: 5252211401419 | D167: 111遵义市汇川区人民医院 | E167: 09外科医师 | F167: 160.90 | G167: 53.63 | H167: 77.40 | I167: 63.14 | J167: 2 | K167: 否
A168: 166 | B168: 姚成霞 | C168: 5252211401727 | D168: 111遵义市汇川区人民医院 | E168: 10麻醉科医师 | F168: 173.10 | G168: 57.70 | H168: 77.40 | I168: 65.58 | J168: 1 | K168: 是
A169: 167 | B169: 蹇天旺 | C169: 5252211401810 | D169: 111遵义市汇川区人民医院 | E169: 10麻醉科医师 | F169: 157.00 | G169: 52.33 | H169: 85.20 | I169: 65.48 | J169: 2 | K169: 否
A170: 168 | B170: 苏丹丹 | C170: 5252211401605 | D170: 111遵义市汇川区人民医院 | E170: 10麻醉科医师 | F170: 157.80 | G170: 52.60 | H170: 84.60 | I170: 65.40 | J170: 3 | K170: 否
A171: 169 | B171: 曾涵 | C171: 4252211604301 | D171: 112遵义职业技术学校 | E171: 01中职旅游专业教师 | F171: 196.00 | G171: 65.33 | H171: 81.54 | I171: 71.82 | J171: 1 | K171: 是
A172: 170 | B172: 赵小华 | C172: 4252211902329 | D172: 112遵义职业技术学校 | E172: 01中职旅游专业教师 | F172: 186.50 | G172: 62.17 | H172: 83.10 | I172: 70.54 | J172: 2 | K172: 否
A173: 171 | B173: 朱江凤 | C173: 4252211400326 | D173: 112遵义职业技术学校 | E173: 01中职旅游专业教师 | F173: 187.00 | G173: 62.33 | H173: 77.90 | I173: 68.56 | J173: 3 | K173: 否
A174: 172 | B174: 吴雪飘 | C174: 1152213002227 | D174: 112遵义职业技术学校 | E174: 02财务人员 | F174: 216.50 | G174: 72.17 | H174: 83.60 | I174: 76.74 | J174: 1 | K174: 是
A175: 173 | B175: 唐冰清 | C175: 1152213002525 | D175: 112遵义职业技术学校 | E175: 02财务人员 | F175: 203.50 | G175: 67.83 | H175: 89.10 | I175: 76.34 | J175: 2 | K175: 是
A176: 174 | B176: 刘惠真 | C176: 1152213002804 | D176: 112遵义职业技术学校 | E176: 02财务人员 | F176: 193.50 | G176: 64.50 | H176: 84.60 | I176: 72.54 | J176: 3 | K176: 否
A177: 175 | B177: 黄开戊 | C177: 1152213001512 | D177: 112遵义职业技术学校 | E177: 02财务人员 | F177: 196.50 | G177: 65.50 | H177: 82.40 | I177: 72.26 | J177: 4 | K177: 否
A178: 176 | B178: 陆学容 | C178: 1152213002524 | D178: 112遵义职业技术学校 | E178: 02财务人员 | F178: 189.00 | G178: 63.00 | H178: 85.90 | I178: 72.16 | J178: 5 | K178: 否
A179: 177 | B179: 姚隽 | C179: 4252211602628 | D179: 113遵义航天高级中学 | E179: 01高中语文教师 | F179: 202.00 | G179: 67.33 | H179: 80.78 | I179: 72.71 | J179: 1 | K179: 是
A180: 178 | B180: 余盛美 | C180: 4252211601516 | D180: 113遵义航天高级中学 | E180: 01高中语文教师 | F180: 198.00 | G180: 66.00 | H180: 78.92 | I180: 71.17 | J180: 2 | K180: 否
A181: 179 | B181: 韦群 | C181: 4252211901029 | D181: 113遵义航天高级中学 | E181: 02高中信息技术教师 | F181: 207.50 | G181: 69.17 | H181: 81.92 | I181: 74.27 | J181: 1 | K181: 是
A182: 180 | B182: 尹尧 | C182: 4252211900909 | D182: 113遵义航天高级中学 | E182: 02高中信息技术教师 | F182: 190.00 | G182: 63.33 | H182: 78.28 | I182: 69.31 | J182: 2 | K182: 否
A183: 181 | B183: 马雪倩 | C183: 4252211604222 | D183: 113遵义航天高级中学 | E183: 02高中信息技术教师 | F183: 185.50 | G183: 61.83 | H183: 缺考 | I183: 37.10 | J183: 3 | K183: 否
A184: 182 | B184: 何平平 | C184: 4252211603013 | D184: 114遵义市第十三中学 | E184: 01高中俄语教师 | F184: 142.50 | G184: 47.50 | H184: 79.86 | I184: 60.44 | J184: 1 | K184: 是
A185: 183 | B185: 赵雅南 | C185: 4252211400408 | D185: 114遵义市第十三中学 | E185: 01高中俄语教师 | F185: 177.00 | G185: 59.00 | H185: 缺考 | I185: 35.40 | J185: 2 | K185: 否
A186: 184 | B186: 刘春兰 | C186: 5252211401203 | D186: 115遵义航天中学 | E186: 01校医 | F186: 167.80 | G186: 55.93 | H186: 83.80 | I186: 67.08 | J186: 1 | K186: 是
A187: 185 | B187: 杨洁 | C187: 5252211401527 | D187: 115遵义航天中学 | E187: 01校医 | F187: 169.40 | G187: 56.47 | H187: 缺考 | I187: 33.88 | J187: 2 | K187: 否
A188: 186 | B188: 卢旭辉 | C188: 4252211400411 | D188: 116遵义航天中学恒大分校 | E188: 01初中体育教师 | F188: 181.50 | G188: 60.50 | H188: 77.28 | I188: 67.21 | J188: 1 | K188: 是
A189: 187 | B189: 路顺钦 | C189: 4252211903323 | D189: 116遵义航天中学恒大分校 | E189: 01初中体育教师 | F189: 163.50 | G189: 54.50 | H189: 77.92 | I189: 63.87 | J189: 2 | K189: 否
A190: 188 | B190: 周凯 | C190: 4252211600815 | D190: 116遵义航天中学恒大分校 | E190: 01初中体育教师 | F190: 164.00 | G190: 54.67 | H190: 77.28 | I190: 63.71 | J190: 3 | K190: 否
A191: 189 | B191: 袁奕昉 | C191: 4252211900428 | D191: 116遵义航天中学恒大分校 | E191: 02初中心理健康教师 | F191: 207.50 | G191: 69.17 | H191: 86.15 | I191: 75.96 | J191: 1 | K191: 是
A192: 190 | B192: 吴静 | C192: 4252211902902 | D192: 116遵义航天中学恒大分校 | E192: 02初中心理健康教师 | F192: 205.00 | G192: 68.33 | H192: 82.40 | I192: 73.96 | J192: 2 | K192: 否
A193: 191 | B193: 王万霞 | C193: 4252211600524 | D193: 116遵义航天中学恒大分校 | E193: 02初中心理健康教师 | F193: 193.50 | G193: 64.50 | H193: 77.82 | I193: 69.83 | J193: 3 | K193: 否
A194: 192 | B194: 宋兰 | C194: 5252211401227 | D194: 116遵义航天中学恒大分校 | E194: 03校医 | F194: 183.90 | G194: 61.30 | H194: 85.40 | I194: 70.94 | J194: 1 | K194: 是
A195: 193 | B195: 何倩 | C195: 5252211401128 | D195: 116遵义航天中学恒大分校 | E195: 03校医 | F195: 182.80 | G195: =F195/3 -> 60.93 | H195: 77.20 | I195: 67.44 | J195: 2 | K195: 是
A196: 194 | B196: 云虹 | C196: 5252211401202 | D196: 116遵义航天中学恒大分校 | E196: 03校医 | F196: 176.00 | G196: 58.67 | H196: 77.20 | I196: 66.08 | J196: 3 | K196: 否
A197: 195 | B197: 弋佳玉 | C197: 5252211401617 | D197: 116遵义航天中学恒大分校 | E197: 03校医 | F197: 167.00 | G197: 55.67 | H197: 缺考 | I197: 33.40 | J197: 4 | K197: 否
A198: 196 | B198: 冯圣娟 | C198: 1152213001124 | D198: 116遵义航天中学恒大分校 | E198: 04财务人员 | F198: 219.50 | G198: 73.17 | H198: 87.60 | I198: 78.94 | J198: 1 | K198: 是
A199: 197 | B199: 周书卉 | C199: 1152213001620 | D199: 116遵义航天中学恒大分校 | E199: 04财务人员 | F199: 197.50 | G199: 65.83 | H199: 82.60 | I199: 72.54 | J199: 2 | K199: 否
A200: 198 | B200: 江洋 | C200: 1152213002323 | D200: 116遵义航天中学恒大分校 | E200: 04财务人员 | F200: 190.00 | G200: 63.33 | H200: 84.20 | I200: 71.68 | J200: 3 | K200: 否
... 740 more rows
